[Event "MČR družstev mladších žáků 2024"]
[Site "Harrachov, Czech Republic"]
[Date "2024.06.15"]
[Round "4.25"]
[White "Padivy Jan"]
[Black "Burel Jan"]
[Result "1/2-1/2"]
[TimeControl "25+10"]
[WhiteFideId "23752904"]
[BlackFideId "23754907"]
[WhiteElo "1500"]
[BlackElo "1172"]

1. d4 {[%clk 00:25:18]} {[%emt 00:00:02]} f5 {[%clk 00:25:18]} {[%emt
00:00:02]} 2. Bg5 {[%clk 00:25:26]} {[%emt 00:00:01]} g6 {[%clk 00:25:25]}
{[%emt 00:00:03]} 3. c4 {[%clk 00:25:31]} {[%emt 00:00:05]} Bg7 {[%clk
00:25:32]} {[%emt 00:00:04]} 4. Nc3 {[%clk 00:25:38]} {[%emt 00:00:03]} c6
{[%clk 00:25:32]} {[%emt 00:00:10]} 5. Nf3 {[%clk 00:25:45]} {[%emt 00:00:03]}
Nf6 {[%clk 00:25:11]} {[%emt 00:00:29]} 6. e3 {[%clk 00:25:52]} {[%emt
00:00:05]} d6 {[%clk 00:25:02]} {[%emt 00:00:18]} 7. Bd3 {[%clk 00:25:44]}
{[%emt 00:00:17]} O-O {[%clk 00:24:48]} {[%emt 00:00:25]} 8. O-O {[%clk
00:25:51]} {[%emt 00:00:03]} Qe8 {[%clk 00:24:45]} {[%emt 00:00:13]} 9. Re1
{[%clk 00:25:39]} {[%emt 00:00:22]} e5 {[%clk 00:24:35]} {[%emt 00:00:19]} 10.
dxe5 {[%clk 00:25:08]} {[%emt 00:00:43]} dxe5 {[%clk 00:24:41]} {[%emt
00:00:04]} 11. e4 {[%clk 00:23:00]} {[%emt 00:02:17]} f4 {[%clk 00:24:41]}
{[%emt 00:00:10]} 12. Bxf6 {[%clk 00:23:07]} {[%emt 00:00:03]} Bxf6 {[%clk
00:24:44]} {[%emt 00:00:07]} 13. Be2 {[%clk 00:23:00]} {[%emt 00:00:17]} g5
{[%clk 00:24:03]} {[%emt 00:00:50]} 14. h3 {[%clk 00:21:51]} {[%emt 00:01:20]}
Qg6 {[%clk 00:23:07]} {[%emt 00:01:05]} 15. Qd6 {[%clk 00:20:10]} {[%emt
00:01:44]} g4 {[%clk 00:22:00]} {[%emt 00:01:27]} 16. Nxe5 {[%clk 00:19:08]}
{[%emt 00:01:11]} Bxe5 {[%clk 00:22:07]} {[%emt 00:00:02]} 17. Qxe5 {[%clk
00:19:16]} {[%emt 00:00:02]} gxh3 {[%clk 00:22:14]} {[%emt 00:00:04]} 18. Bf3
{[%clk 00:18:44]} {[%emt 00:00:42]} Bg4 {[%clk 00:21:59]} {[%emt 00:00:25]} 19.
Bxg4 {[%clk 00:18:08]} {[%emt 00:00:46]} Qxg4 {[%clk 00:22:06]} {[%emt
00:00:02]} 20. g3 {[%clk 00:17:28]} {[%emt 00:00:50]} Nd7 {[%clk 00:20:21]}
{[%emt 00:01:55]} 21. Qd6 {[%clk 00:13:17]} {[%emt 00:04:11]} Qf3 {[%clk
00:20:04]} {[%emt 00:00:36]} 22. Qe6+ {[%clk 00:13:24]} {[%emt 00:00:04]} Rf7
{[%clk 00:20:13]} {[%emt 00:00:02]} 23. Qxh3 {[%clk 00:13:27]} {[%emt
00:00:07]} Ne5 {[%clk 00:19:04]} {[%emt 00:01:18]} 24. Qg2 {[%clk 00:09:48]}
{[%emt 00:03:50]} fxg3 {[%clk 00:17:28]} {[%emt 00:01:45]} 25. Rf1 {[%clk
00:05:15]} {[%emt 00:04:44]} Qxg2+ {[%clk 00:15:30]} {[%emt 00:02:08]} 26. Kxg2
{[%clk 00:05:22]} {[%emt 00:00:03]} gxf2 {[%clk 00:15:36]} {[%emt 00:00:04]} 27.
Rxf2 {[%clk 00:05:28]} {[%emt 00:00:04]} Rxf2+ {[%clk 00:15:44]} {[%emt
00:00:03]} 28. Kxf2 {[%clk 00:05:36]} {[%emt 00:00:01]} Nd3+ {[%clk 00:15:51]}
{[%emt 00:00:02]} 29. Ke2 {[%clk 00:04:58]} {[%emt 00:00:39]} Nxb2 {[%clk
00:15:11]} {[%emt 00:01:00]} 30. Rb1 {[%clk 00:04:45]} {[%emt 00:00:23]} Nxc4
{[%clk 00:15:15]} {[%emt 00:00:06]} 31. Rxb7 {[%clk 00:04:52]} {[%emt
00:00:03]} Nd6 {[%clk 00:13:14]} {[%emt 00:02:08]} 32. Rc7 {[%clk 00:04:42]}
{[%emt 00:00:19]} Nb5 {[%clk 00:12:22]} {[%emt 00:01:05]} 33. Rxc6 {[%emt
00:00:14]} 1/2-1/2



[ePGN "0.1;DGT LiveChess/2.2.6"]

[Event "MČR družstev mladších žáků 2024"]
[Site "Harrachov, Czech Republic"]
[Date "2024.06.15"]
[Round "4.26"]
[White "Stepnicka Filip"]
[Black "Koupil Stepan"]
[Result "1-0"]
[TimeControl "25+10"]
[WhiteFideId "23771542"]
[BlackFideId "23742119"]
[WhiteElo "1116"]
[BlackElo "1423"]

1. e4 {[%clk 00:25:15]} {[%emt 00:00:04]} e5 {[%clk 00:25:16]} {[%emt
00:00:04]} 2. Nf3 {[%clk 00:25:12]} {[%emt 00:00:14]} Nc6 {[%clk 00:25:24]}
{[%emt 00:00:02]} 3. Bc4 {[%clk 00:25:08]} {[%emt 00:00:13]} Bc5 {[%clk
00:25:31]} {[%emt 00:00:03]} 4. d3 {[%clk 00:24:49]} {[%emt 00:00:29]} h6
{[%clk 00:25:06]} {[%emt 00:00:36]} 5. c3 {[%clk 00:24:54]} {[%emt 00:00:05]}
Nf6 {[%clk 00:25:03]} {[%emt 00:00:14]} 6. a4 {[%clk 00:24:55]} {[%emt
00:00:08]} a5 {[%clk 00:24:36]} {[%emt 00:00:36]} 7. O-O {[%clk 00:24:00]}
{[%emt 00:01:05]} d6 {[%clk 00:23:52]} {[%emt 00:00:54]} 8. Nbd2 {[%clk
00:23:57]} {[%emt 00:00:12]} O-O {[%clk 00:23:42]} {[%emt 00:00:23]} 9. Re1
{[%clk 00:23:37]} {[%emt 00:00:28]} Re8 {[%clk 00:22:55]} {[%emt 00:00:57]} 10.
Nf1 {[%clk 00:20:45]} {[%emt 00:03:02]} Bg4 {[%clk 00:21:46]} {[%emt 00:01:18]}
11. Ng3 {[%clk 00:18:47]} {[%emt 00:02:10]} Be6 {[%clk 00:18:34]} {[%emt
00:03:22]} 12. Bxe6 {[%clk 00:16:39]} {[%emt 00:02:18]} fxe6 {[%clk 00:18:35]}
{[%emt 00:00:09]} 13. Be3 {[%clk 00:16:21]} {[%emt 00:00:28]} Ba7 {[%clk
00:16:51]} {[%emt 00:01:51]} 14. d4 {[%clk 00:15:06]} {[%emt 00:01:27]} exd4
{[%clk 00:16:43]} {[%emt 00:00:18]} 15. cxd4 {[%clk 00:15:06]} {[%emt
00:00:10]} d5 {[%clk 00:16:23]} {[%emt 00:00:31]} 16. e5 {[%clk 00:14:33]}
{[%emt 00:00:43]} Ne4 {[%clk 00:15:33]} {[%emt 00:00:57]} 17. Nh5 {[%clk
00:13:28]} {[%emt 00:01:13]} Ne7 {[%clk 00:11:10]} {[%emt 00:04:38]} 18. Qb3
{[%clk 00:11:49]} {[%emt 00:01:50]} Rb8 {[%clk 00:09:35]} {[%emt 00:01:42]} 19.
Qc2 {[%clk 00:10:41]} {[%emt 00:01:14]} Nf5 {[%clk 00:08:39]} {[%emt 00:01:11]}
20. Rac1 {[%clk 00:10:06]} {[%emt 00:00:39]} c6 {[%clk 00:08:10]} {[%emt
00:00:44]} 21. Rcd1 {[%clk 00:08:54]} {[%emt 00:01:21]} Qe7 {[%clk 00:06:15]}
{[%emt 00:02:06]} 22. Qb3 {[%clk 00:07:34]} {[%emt 00:01:26]} Rec8 {[%clk
00:02:56]} {[%emt 00:03:33]} 23. Rc1 {[%clk 00:06:56]} {[%emt 00:00:50]} c5
{[%clk 00:00:47]} {[%emt 00:02:19]} 24. dxc5 {[%clk 00:06:57]} {[%emt
00:00:08]} Nxe3 {[%clk 00:00:51]} {[%emt 00:00:07]} 25. fxe3 {[%clk 00:06:23]}
{[%emt 00:00:44]} Bxc5 {[%clk 00:00:58]} {[%emt 00:00:02]} 26. Kh1 {[%clk
00:05:40]} {[%emt 00:00:53]} Bb4 {[%clk 00:00:38]} {[%emt 00:00:30]} 27. Rxc8+
{[%clk 00:04:15]} {[%emt 00:01:25]} Rxc8 {[%clk 00:00:40]} {[%emt 00:00:09]} 28.
Rf1 {[%clk 00:03:46]} {[%emt 00:00:48]} Nc5 {[%clk 00:00:32]} {[%emt 00:00:18]}
29. Qd1 {[%clk 00:03:16]} {[%emt 00:00:40]} Qe8 {[%clk 00:00:31]} {[%emt
00:00:11]} 30. Ng3 {[%clk 00:02:44]} {[%emt 00:00:42]} Qxa4 {[%clk 00:00:31]}
{[%emt 00:00:10]} 31. Qxa4 {[%clk 00:02:39]} {[%emt 00:00:05]} Nxa4 {[%clk
00:00:40]} {[%emt 00:00:01]} 32. b3 {[%clk 00:02:22]} {[%emt 00:00:38]} Nc5
{[%clk 00:00:44]} {[%emt 00:00:05]} 33. Rc1 {[%clk 00:02:04]} {[%emt 00:00:28]}
Re8 {[%clk 00:00:31]} {[%emt 00:00:21]} 34. Rb1 {[%clk 00:01:22]} {[%emt
00:00:56]} Kf7 {[%clk 00:00:27]} {[%emt 00:00:12]} 35. Rf1 {[%clk 00:01:05]}
{[%emt 00:00:28]} Ke7 {[%clk 00:00:18]} {[%emt 00:00:18]} 36. Rb1 {[%clk
00:00:44]} {[%emt 00:00:31]} Rc8 {[%clk 00:00:23]} {[%emt 00:00:06]} 37. Rc1
{[%clk 00:00:46]} {[%emt 00:00:06]} Kd7 {[%clk 00:00:31]} {[%emt 00:00:04]} 38.
Rb1 {[%clk 00:00:42]} {[%emt 00:00:14]} Nd3 {[%clk 00:00:26]} {[%emt 00:00:14]}
39. Kg1 {[%clk 00:00:28]} {[%emt 00:00:24]} Rf8 {[%clk 00:00:16]} {[%emt
00:00:21]} 40. h3 {[%clk 00:00:19]} {[%emt 00:00:19]} g5 {[%clk 00:00:22]}
{[%emt 00:00:04]} 41. Kh2 {[%clk 00:00:24]} {[%emt 00:00:06]} Bc5 {[%clk
00:00:19]} {[%emt 00:00:12]} 42. e4 {[%clk 00:00:24]} {[%emt 00:00:10]} dxe4
{[%clk 00:00:14]} {[%emt 00:00:16]} 43. Nxe4 {[%clk 00:00:28]} {[%emt
00:00:05]} b6 {[%clk 00:00:20]} {[%emt 00:00:04]} 44. Rd1 {[%clk 00:00:29]}
{[%emt 00:00:08]} Ke7 {[%clk 00:00:12]} {[%emt 00:00:20]} 45. Rxd3 {[%clk
00:00:36]} {[%emt 00:00:03]} Rf4 {[%clk 00:00:20]} {[%emt 00:00:01]} 46. Nxc5
{[%clk 00:00:41]} {[%emt 00:00:05]} bxc5 {[%clk 00:00:30]} {[%emt 00:00:01]} 47.
Rc3 {[%clk 00:00:38]} {[%emt 00:00:12]} a4 48. bxa4 {[%clk 00:00:46]} Rxa4
{[%clk 00:00:33]} {[%emt 00:00:01]} 49. Rxc5 {[%clk 00:00:54]} {[%emt
00:00:02]} Ra7 {[%clk 00:00:42]} {[%emt 00:00:01]} 50. Nd4 {[%clk 00:00:57]}
{[%emt 00:00:07]} Rd7 {[%clk 00:00:46]} {[%emt 00:00:06]} 51. Nc6+ {[%clk
00:01:05]} {[%emt 00:00:02]} Kf7 {[%clk 00:00:54]} {[%emt 00:00:01]} 52. Ra5
{[%clk 00:00:58]} {[%emt 00:00:15]} Kg6 {[%clk 00:01:01]} {[%emt 00:00:05]} 53.
Ra7 {[%clk 00:01:01]} {[%emt 00:00:08]} Rxa7 {[%clk 00:00:50]} {[%emt
00:00:22]} 54. Nxa7 {[%emt 00:00:01]} Kf5 {[%emt 00:00:01]} 55. Nc6 {[%clk
00:01:17]} {[%emt 00:00:01]} Ke4 {[%clk 00:01:09]} 56. Kg3 {[%clk 00:01:21]}
{[%emt 00:00:06]} Kd5 {[%clk 00:01:18]} 57. Ne7+ {[%clk 00:01:24]} {[%emt
00:00:08]} Kxe5 {[%clk 00:01:26]} {[%emt 00:00:02]} 58. Nc6+ {[%clk 00:01:25]}
{[%emt 00:00:09]} Kf6 {[%clk 00:01:35]} {[%emt 00:00:01]} 59. Kf3 {[%clk
00:01:27]} {[%emt 00:00:08]} h5 {[%clk 00:01:44]} 60. Nd4 {[%clk 00:01:25]}
{[%emt 00:00:13]} Ke5 {[%clk 00:01:42]} {[%emt 00:00:12]} 61. Nc6+ {[%clk
00:01:27]} {[%emt 00:00:07]} Kf5 {[%clk 00:01:49]} {[%emt 00:00:03]} 62. Nd4+
{[%clk 00:01:12]} {[%emt 00:00:15]} Ke5 {[%clk 00:01:56]} {[%emt 00:00:05]} 63.
Ne2 {[%clk 00:01:25]} {[%emt 00:00:05]} Kf6 {[%clk 00:01:55]} {[%emt 00:00:12]}
64. Ke4 {[%clk 00:01:29]} {[%emt 00:00:06]} h4 {[%clk 00:01:58]} {[%emt
00:00:08]} 65. Nd4 {[%clk 00:01:31]} {[%emt 00:00:07]} Kg6 {[%clk 00:01:39]}
{[%emt 00:00:29]} 66. Nxe6 {[%clk 00:01:36]} {[%emt 00:00:04]} Kh5 {[%clk
00:01:49]} 67. Kf5 {[%clk 00:01:36]} {[%emt 00:00:10]} 1-0



[ePGN "0.1;DGT LiveChess/2.2.6"]

[Event "MČR družstev mladších žáků 2024"]
[Site "Harrachov, Czech Republic"]
[Date "2024.06.15"]
[Round "4.27"]
[White "Sara David"]
[Black "Vanousek Zdenek"]
[Result "1-0"]
[TimeControl "25+10"]
[WhiteFideId "23746599"]
[BlackFideId "23770244"]
[WhiteElo "1379"]
[BlackElo "1309"]

1. e4 {[%clk 00:25:18]} {[%emt 00:00:01]} e5 {[%clk 00:25:11]} {[%emt
00:00:07]} 2. Nf3 {[%clk 00:25:27]} {[%emt 00:00:03]} Nc6 {[%clk 00:25:11]}
{[%emt 00:00:08]} 3. Bc4 {[%clk 00:25:35]} {[%emt 00:00:05]} Bc5 {[%clk
00:24:14]} {[%emt 00:01:06]} 4. d3 {[%clk 00:25:44]} {[%emt 00:00:02]} Nf6
{[%clk 00:24:14]} {[%emt 00:00:07]} 5. Bg5 {[%clk 00:25:52]} {[%emt 00:00:05]}
O-O {[%clk 00:24:02]} {[%emt 00:00:16]} 6. Nc3 {[%clk 00:25:59]} {[%emt
00:00:08]} Be7 {[%clk 00:23:32]} {[%emt 00:00:38]} 7. Qd2 {[%clk 00:26:07]}
{[%emt 00:00:04]} a6 {[%clk 00:22:35]} {[%emt 00:01:05]} 8. Bxf6 {[%clk
00:25:51]} {[%emt 00:00:28]} Bxf6 {[%clk 00:22:33]} {[%emt 00:00:10]} 9. g4
{[%clk 00:25:54]} {[%emt 00:00:09]} b5 {[%clk 00:22:37]} {[%emt 00:00:06]} 10.
Bb3 {[%clk 00:26:01]} {[%emt 00:00:04]} Nd4 {[%clk 00:22:26]} {[%emt 00:00:18]}
11. Nxd4 {[%clk 00:25:05]} {[%emt 00:01:08]} exd4 {[%clk 00:22:32]} {[%emt
00:00:04]} 12. Ne2 {[%clk 00:25:08]} {[%emt 00:00:07]} Bg5 {[%clk 00:22:28]}
{[%emt 00:00:14]} 13. f4 {[%clk 00:25:13]} {[%emt 00:00:05]} Bh4+ {[%clk
00:22:28]} {[%emt 00:00:09]} 14. Ng3 {[%clk 00:25:14]} {[%emt 00:00:10]} a5
{[%clk 00:22:08]} {[%emt 00:00:31]} 15. a3 {[%clk 00:25:05]} {[%emt 00:00:18]}
c6 {[%clk 00:21:57]} {[%emt 00:00:21]} 16. O-O-O {[%clk 00:24:45]} {[%emt
00:00:30]} g5 {[%clk 00:21:40]} {[%emt 00:00:27]} 17. Nf5 {[%clk 00:24:27]}
{[%emt 00:00:27]} d5 {[%clk 00:21:29]} {[%emt 00:00:22]} 18. Nxh4 {[%clk
00:24:22]} {[%emt 00:00:14]} gxh4 {[%clk 00:21:32]} {[%emt 00:00:08]} 19. Qf2
{[%clk 00:24:03]} {[%emt 00:00:29]} dxe4 {[%clk 00:21:07]} {[%emt 00:00:35]} 20.
dxe4 {[%clk 00:24:00]} {[%emt 00:00:13]} c5 {[%clk 00:21:08]} {[%emt 00:00:07]}
21. Bd5 {[%clk 00:24:00]} {[%emt 00:00:12]} Ra7 {[%clk 00:20:52]} {[%emt
00:00:26]} 22. g5 {[%clk 00:23:42]} {[%emt 00:00:28]} Be6 {[%clk 00:20:00]}
{[%emt 00:01:01]} 23. f5 {[%clk 00:23:05]} {[%emt 00:00:48]} Bxd5 {[%clk
00:20:05]} {[%emt 00:00:05]} 24. exd5 {[%clk 00:23:12]} {[%emt 00:00:04]} Qxd5
{[%clk 00:20:07]} {[%emt 00:00:05]} 25. f6 {[%clk 00:21:23]} {[%emt 00:02:01]}
Qxg5+ {[%clk 00:20:02]} {[%emt 00:00:13]} 26. Kb1 {[%clk 00:21:27]} {[%emt
00:00:08]} Kh8 {[%clk 00:19:58]} {[%emt 00:00:13]} 27. Rhg1 {[%clk 00:21:20]}
{[%emt 00:00:14]} Qh6 {[%clk 00:20:00]} {[%emt 00:00:11]} 28. Qf5 {[%clk
00:19:48]} {[%emt 00:01:43]} Rc7 {[%clk 00:19:45]} {[%emt 00:00:24]} 29. Qe5
{[%clk 00:19:23]} {[%emt 00:00:33]} Rc6 {[%clk 00:19:40]} {[%emt 00:00:13]} 30.
Rdf1 {[%clk 00:18:32]} {[%emt 00:01:07]} Qe3 {[%clk 00:19:01]} {[%emt
00:00:47]} 31. Qf5 {[%clk 00:16:47]} {[%emt 00:01:37]} b4 {[%clk 00:17:10]}
{[%emt 00:02:20]} 32. Rg7 {[%clk 00:16:47]} {[%emt 00:00:08]} Qh6 {[%clk
00:17:02]} {[%emt 00:00:20]} 33. Rfg1 {[%clk 00:16:17]} {[%emt 00:00:40]} bxa3
{[%clk 00:15:21]} {[%emt 00:01:51]} 34. R1g5 {[%clk 00:15:00]} {[%emt
00:01:25]} Rxf6 {[%clk 00:15:01]} {[%emt 00:00:32]} 35. Rxh7+ {[%clk 00:14:55]}
{[%emt 00:00:15]} Qxh7 {[%clk 00:14:52]} {[%emt 00:00:20]} 36. Qxf6+ {[%clk
00:15:02]} {[%emt 00:00:02]} 1-0



[ePGN "0.1;DGT LiveChess/2.2.6"]

[Event "MČR družstev mladších žáků 2024"]
[Site "Harrachov, Czech Republic"]
[Date "2024.06.15"]
[Round "4.28"]
[White "Burel Jiri"]
[Black "Malek Daniel"]
[Result "0-1"]
[TimeControl "25+10"]
[WhiteFideId "23754915"]
[BlackFideId "23742720"]
[WhiteElo "1116"]
[BlackElo "1246"]

1. d4 {[%clk 00:25:18]} {[%emt 00:00:01]} d5 {[%clk 00:25:18]} {[%emt
00:00:02]} 2. c4 {[%clk 00:25:24]} {[%emt 00:00:03]} c6 {[%clk 00:25:26]}
{[%emt 00:00:02]} 3. Nf3 {[%clk 00:25:29]} {[%emt 00:00:05]} Nf6 {[%clk
00:25:26]} {[%emt 00:00:11]} 4. Nc3 {[%clk 00:25:31]} {[%emt 00:00:07]} Bf5
{[%clk 00:25:31]} {[%emt 00:00:06]} 5. Qb3 {[%clk 00:24:15]} {[%emt 00:01:23]}
Qb6 {[%clk 00:23:31]} {[%emt 00:02:10]} 6. Qxb6 {[%clk 00:23:56]} {[%emt
00:00:31]} axb6 {[%clk 00:23:39]} {[%emt 00:00:03]} 7. cxd5 {[%clk 00:23:39]}
{[%emt 00:00:27]} cxd5 {[%clk 00:23:47]} {[%emt 00:00:03]} 8. Bf4 {[%clk
00:22:35]} {[%emt 00:01:06]} e6 {[%clk 00:23:15]} {[%emt 00:00:49]} 9. e3
{[%clk 00:22:06]} {[%emt 00:00:36]} Bb4 {[%clk 00:22:44]} {[%emt 00:00:44]} 10.
a3 {[%clk 00:21:28]} {[%emt 00:00:47]} Ne4 {[%clk 00:21:56]} {[%emt 00:00:59]}
11. Bxb8 {[%clk 00:20:38]} {[%emt 00:01:00]} Nxc3 {[%clk 00:20:20]} {[%emt
00:01:46]} 12. Kd2 {[%clk 00:13:27]} {[%emt 00:06:58]} Ne4+ {[%clk 00:18:25]}
{[%emt 00:02:28]} 13. Ke2 {[%clk 00:13:04]} {[%emt 00:00:23]} O-O {[%clk
00:17:48]} {[%emt 00:00:58]} 14. Bf4 {[%clk 00:12:37]} {[%emt 00:00:31]} Rfc8
{[%clk 00:17:19]} {[%emt 00:00:43]} 15. Ne1 {[%clk 00:08:19]} {[%emt 00:04:27]}
Bxe1 {[%clk 00:15:19]} {[%emt 00:02:12]} 16. Kxe1 {[%clk 00:08:03]} {[%emt
00:00:25]} Rc2 {[%clk 00:14:58]} {[%emt 00:00:24]} 17. f3 {[%clk 00:06:29]}
{[%emt 00:01:51]} Nf2 {[%clk 00:14:40]} {[%emt 00:00:29]} 18. Rg1 {[%clk
00:05:55]} {[%emt 00:00:41]} Rac8 {[%clk 00:14:05]} {[%emt 00:00:48]} 19. Be2
{[%clk 00:04:48]} {[%emt 00:01:14]} Rxe2+ {[%clk 00:10:49]} {[%emt 00:03:29]}
20. Kxe2 {[%clk 00:04:50]} {[%emt 00:00:08]} Rc2+ {[%clk 00:10:56]} {[%emt
00:00:03]} 21. Kf1 {[%clk 00:04:39]} {[%emt 00:00:14]} Bd3+ {[%clk 00:11:01]}
{[%emt 00:00:11]} 22. Ke1 {[%clk 00:04:19]} {[%emt 00:00:28]} Re2+ {[%clk
00:11:08]} {[%emt 00:00:06]} 23. Kf1 {[%clk 00:04:17]} {[%emt 00:00:09]} Rxb2+
{[%clk 00:11:13]} {[%emt 00:00:08]} 24. Ke1 {[%clk 00:04:17]} {[%emt 00:00:09]}
Re2+ {[%clk 00:11:20]} {[%emt 00:00:04]} 25. Kf1 {[%clk 00:04:24]} {[%emt
00:00:03]} Bc4 {[%clk 00:10:23]} {[%emt 00:01:07]} 26. Re1 {[%clk 00:03:19]}
{[%emt 00:01:12]} Rd2+ {[%clk 00:10:30]} {[%emt 00:00:06]} 27. Re2 {[%clk
00:03:10]} {[%emt 00:00:16]} Rxe2 {[%clk 00:10:27]} {[%emt 00:00:15]} 28. h3
{[%clk 00:02:50]} {[%emt 00:00:31]} Ra2+ {[%clk 00:10:28]} {[%emt 00:00:08]} 29.
Ke1 {[%clk 00:02:53]} {[%emt 00:00:05]} Nd3+ {[%clk 00:10:36]} {[%emt
00:00:05]} 30. Kd1 {[%clk 00:02:45]} {[%emt 00:00:11]} Bb3# {[%clk 00:10:43]}
{[%emt 00:00:09]} 0-1



[ePGN "0.1;DGT LiveChess/2.2.6"]

[Event "MČR družstev mladších žáků 2024"]
[Site "Harrachov, Czech Republic"]
[Date "2024.06.15"]
[Round "4.29"]
[White "Junova Alexandra"]
[Black "Fiala Tomas"]
[Result "1-0"]
[TimeControl "25+10"]
[WhiteFideId "23754990"]
[BlackFideId "23770040"]
[WhiteElo "1105"]
[BlackElo "1203"]

1. e4 {[%clk 00:25:17]} {[%emt 00:00:03]} e5 {[%clk 00:25:16]} {[%emt
00:00:03]} 2. Nf3 {[%emt 00:00:06]} Nf6 {[%clk 00:25:20]} {[%emt 00:00:03]} 3.
d3 {[%clk 00:25:21]} {[%emt 00:00:14]} Nc6 {[%clk 00:24:59]} {[%emt 00:00:30]}
4. Be2 {[%clk 00:25:26]} {[%emt 00:00:05]} Be7 {[%clk 00:24:37]} {[%emt
00:00:29]} 5. Nc3 {[%clk 00:25:20]} {[%emt 00:00:19]} d6 {[%clk 00:24:16]}
{[%emt 00:00:30]} 6. h3 {[%clk 00:25:19]} {[%emt 00:00:13]} h6 {[%clk
00:24:03]} {[%emt 00:00:21]} 7. Bd2 {[%clk 00:25:23]} {[%emt 00:00:07]} Be6
{[%clk 00:23:34]} {[%emt 00:00:39]} 8. O-O {[%clk 00:24:54]} {[%emt 00:00:39]}
O-O {[%clk 00:23:25]} {[%emt 00:00:19]} 9. Re1 {[%clk 00:24:50]} {[%emt
00:00:14]} Qd7 {[%clk 00:22:16]} {[%emt 00:01:19]} 10. a3 {[%clk 00:24:14]}
{[%emt 00:00:47]} Nh7 {[%clk 00:20:10]} {[%emt 00:02:15]} 11. Nd5 {[%clk
00:23:18]} {[%emt 00:01:06]} Bxd5 {[%clk 00:19:13]} {[%emt 00:01:07]} 12. exd5
{[%clk 00:23:23]} {[%emt 00:00:06]} Nd8 {[%clk 00:18:57]} {[%emt 00:00:25]} 13.
Bc3 {[%clk 00:23:14]} {[%emt 00:00:18]} f5 {[%clk 00:16:00]} {[%emt 00:03:08]}
14. Nh2 {[%clk 00:21:23]} {[%emt 00:02:00]} Bf6 {[%clk 00:14:24]} {[%emt
00:01:47]} 15. Qd2 {[%clk 00:17:05]} {[%emt 00:04:29]} Bg5 {[%clk 00:13:05]}
{[%emt 00:01:28]} 16. Qd1 {[%clk 00:17:09]} {[%emt 00:00:06]} Nf7 {[%clk
00:12:44]} {[%emt 00:00:31]} 17. Nf3 {[%clk 00:16:43]} {[%emt 00:00:37]} Bf6
{[%clk 00:12:18]} {[%emt 00:00:35]} 18. Qd2 {[%clk 00:16:46]} {[%emt 00:00:07]}
Nfg5 {[%emt 00:01:09]} 19. b3 {[%clk 00:14:12]} {[%emt 00:02:43]} Nxf3+ {[%clk
00:10:20]} {[%emt 00:01:09]} 20. Bxf3 {[%clk 00:14:21]} {[%emt 00:00:02]} Bg5
{[%clk 00:10:27]} {[%emt 00:00:03]} 21. Qe2 {[%clk 00:14:29]} {[%emt 00:00:02]}
Rae8 {[%clk 00:09:41]} {[%emt 00:00:57]} 22. g3 {[%clk 00:14:31]} {[%emt
00:00:07]} f4 {[%clk 00:08:34]} {[%emt 00:01:18]} 23. Bg4 {[%clk 00:14:06]}
{[%emt 00:00:34]} Qe7 {[%clk 00:07:07]} {[%emt 00:01:37]} 24. h4 {[%clk
00:13:58]} {[%emt 00:00:19]} Bf6 {[%clk 00:07:05]} {[%emt 00:00:12]} 25. Be6+
{[%clk 00:13:01]} {[%emt 00:01:06]} Kh8 {[%clk 00:06:42]} {[%emt 00:00:33]} 26.
Qg4 {[%clk 00:12:39]} {[%emt 00:00:32]} fxg3 {[%clk 00:06:06]} {[%emt
00:00:46]} 27. fxg3 {[%clk 00:12:46]} {[%emt 00:00:03]} e4 {[%clk 00:02:08]}
{[%emt 00:04:09]} 28. d4 {[%clk 00:12:14]} {[%emt 00:00:42]} c6 {[%clk
00:01:48]} {[%emt 00:00:30]} 29. Rxe4 {[%clk 00:12:12]} {[%emt 00:00:11]} cxd5
{[%emt 00:01:01]} 30. Ree1 {[%clk 00:11:51]} {[%emt 00:00:28]} Qc7 {[%clk
00:00:41]} {[%emt 00:00:30]} 31. Bb4 {[%clk 00:10:58]} {[%emt 00:01:02]} a5
{[%clk 00:00:25]} {[%emt 00:00:27]} 32. Bd2 {[%clk 00:10:08]} {[%emt 00:00:57]}
Qxc2 {[%clk 00:00:29]} {[%emt 00:00:08]} 33. Bxa5 {[%clk 00:10:01]} {[%emt
00:00:17]} Qxb3 {[%clk 00:00:21]} {[%emt 00:00:19]} 34. Bb4 {[%clk 00:10:09]}
{[%emt 00:00:02]} Be7 {[%clk 00:00:14]} {[%emt 00:00:17]} 35. Bf5 {[%clk
00:09:41]} {[%emt 00:00:35]} Qa4 {[%clk 00:00:11]} {[%emt 00:00:16]} 36. Bg6
{[%clk 00:09:22]} {[%emt 00:00:28]} Rc8 {[%clk 00:00:16]} {[%emt 00:00:06]} 37.
Rxe7 {[%clk 00:09:21]} {[%emt 00:00:11]} Rc2 {[%clk 00:00:13]} {[%emt
00:00:03]} 38. Bxc2 {[%clk 00:09:24]} {[%emt 00:00:05]} Qxc2 {[%clk 00:00:29]}
{[%emt 00:00:06]} 39. Qxg7# {[%clk 00:09:30]} {[%emt 00:00:04]} 1-0



[ePGN "0.1;DGT LiveChess/2.2.6"]